fUSD/lending_fUSD_20241224
["ID","MTS","AMOUNT","RATE_DAILY","PERIOD"]
[346520663,1735018281210,-500.0,0.0001589,2]
[346520664,1735018281219,-558.02,0.0001589,2]
[346520665,1735018281229,-500.0,0.0001589,2]
[346520666,1735018281238,-500.0,0.0001589,2]
[346520667,1735018281247,-1000.0,0.0001589,2]
[346520668,1735018281257,-500.0,0.0001589,2]
[346520669,1735018281266,-500.0,0.0001589,2]
[346520670,1735018281275,-973.2,0.0001589,2]
[346520671,1735018281284,-3656.76,0.0001589,2]
[346520672,1735018281293,-500.0,0.0001589,2]
[346520673,1735018281302,-997.53,0.0001589,2]
[346520674,1735018281311,-855.77,0.0001589,2]
[346520675,1735018281320,-693.49,0.0001589,2]
[346520676,1735018281329,-500.0,0.0001589,2]
[346520677,1735018281338,-637.35,0.0001589,2]
[346520678,1735018281347,-1739.36,0.0001589,2]
[346520679,1735018281355,-500.0,0.0001589,2]
[346520680,1735018281364,-500.0,0.0001589,2]
[346520681,1735018281373,-705.36,0.0001589,2]
[346520682,1735018281382,-500.0,0.0001589,2]
[346520683,1735018281391,-500.0,0.0001589,2]
[346520684,1735018281402,-1543.65,0.0001589,2]
[346520685,1735018281411,-500.0,0.0001589,2]
[346520686,1735018281420,-820.97,0.0001589,2]
[346520687,1735018281429,-1819.38,0.0001589,2]
[346520688,1735018281439,-4120.74,0.0001589,2]
[346520689,1735018281448,-910.57,0.0001589,2]
[346520690,1735018281458,-989.44,0.0001589,2]
[346520691,1735018281467,-2961.05,0.0001589,2]
[346520692,1735018281476,-500.0,0.0001589,2]
[346520693,1735018281485,-503.58,0.0001589,2]
[346520694,1735018281495,-903.8,0.0001589,2]
[346520695,1735018281505,-596.96,0.0001589,2]
[346520696,1735018281513,-1456.76,0.0001589,2]
[346520697,1735018281523,-807.94,0.0001589,2]
[346520698,1735018281531,-2643.91,0.0001589,2]
[346520699,1735018281540,-1308.53,0.0001589,2]
[346520700,1735018281549,-794.16,0.0001589,2]
[346520701,1735018281558,-1213.29,0.0001589,2]
[346520702,1735018281568,-1676.79,0.0001589,2]
[346520703,1735018281578,-500.0,0.0001589,2]
[346520704,1735018281587,-500.0,0.0001589,2]
[346520705,1735018281596,-5281.26,0.0001589,2]
[346520706,1735018281605,-1433.69,0.0001589,2]
[346520707,1735018281615,-677.19,0.0001589,2]
[346520708,1735018281624,-1372.29,0.0001589,2]
[346520709,1735018281632,-1023.69,0.0001589,2]
[346520710,1735018281641,-500.0,0.0001589,2]
[346520711,1735018281650,-680.17,0.0001589,2]
[346520712,1735018281659,-552.15,0.0001589,2]
[346520713,1735018281668,-705.72,0.0001589,2]
[346520714,1735018281677,-500.0,0.0001589,2]
[346520715,1735018281687,-674.8,0.0001589,2]
[346520716,1735018281696,-4867.25,0.0001589,2]
[346520717,1735018281707,-3213.6,0.0001589,2]
[346520718,1735018281716,-854.26,0.0001589,2]
[346520719,1735018281725,-500.0,0.0001589,2]
[346520720,1735018281734,-1660.69,0.0001589,2]
[346520721,1735018281743,-500.0,0.0001589,2]
[346520722,1735018281753,-548.87,0.0001589,2]
[346520723,1735018281763,-826.14,0.0001589,2]
[346520724,1735018281772,-500.0,0.0001589,2]
[346520725,1735018281781,-14771.78,0.0001589,2]
[346520726,1735018281790,-619.38,0.0001589,2]
[346520727,1735018281799,-3293.16,0.0001589,2]
[346520728,1735018281808,-500.0,0.0001589,2]
[346520729,1735018281818,-500.0,0.0001589,2]
[346520730,1735018281827,-500.0,0.0001589,2]
[346520731,1735018281835,-527.97,0.0001589,2]
[346520732,1735018281844,-500.0,0.0001589,2]
[346520733,1735018281853,-500.0,0.0001589,2]
[346520734,1735018281862,-500.0,0.0001589,2]
[346520735,1735018281871,-1071.77,0.0001589,2]
[346520736,1735018281880,-500.0,0.0001589,2]
[346520737,1735018281889,-500.0,0.0001589,2]
[346520738,1735018281898,-150.0,0.00015898,2]
[346520739,1735018281907,-150.0,0.0001591,2]
[346520740,1735018281917,-150.0,0.0001592,2]
[346520741,1735018281926,-150.0,0.00015922,2]
[346520742,1735018281935,-150.0,0.00015946,2]
[346520743,1735018281944,-150.0,0.00015955,2]
[346520744,1735018281956,-150.0,0.0001597,2]
[346520745,1735018281965,-150.0,0.0001597,2]
[346520746,1735018281975,-150.0,0.0001597,2]
[346520747,1735018281984,-150.0,0.0001599,2]
[346520748,1735018281994,-150.0,0.00015994,2]
[346520749,1735018282003,-6955.85125038,0.00016,2]
[346520750,1735018282011,-1500.0,0.00016014,2]
[346520751,1735018282020,-150.0,0.00016018,2]
[346520752,1735018282029,-150.0,0.00016024,2]
[346520753,1735018282039,-500.0,0.00016026,2]
[346520754,1735018282048,-150.0,0.00016029,2]
[346520755,1735018282057,-150.0,0.00016041,2]
[346520756,1735018282066,-150.0,0.00016059,2]
[346520757,1735018282075,-150.0,0.00016065,2]
[346520758,1735018282084,-150.0,0.00016089,2]
[346520759,1735018282093,-150.0,0.00016089,2]
[346520760,1735018282102,-150.0,0.00016094,2]
[346520761,1735018282111,-2075.88434638,0.00016109,2]
[346520762,1735018282120,-150.0,0.00016113,2]
[346520763,1735018282130,-150.0,0.00016129,2]
[346520764,1735018282253,-150.0,0.00016137,2]
[346520765,1735018282262,-150.0,0.00016149,2]
[346520766,1735018282272,-1627.96297763,0.00016155,2]
[346520767,1735018282281,-150.0,0.00016161,2]
[346520768,1735018282290,-500.0,0.00016163,2]
[346520769,1735018282299,-500.0,0.00016163,2]
[346520770,1735018282309,-500.0,0.00016163,2]
[346520771,1735018282318,-500.0,0.00016163,2]
[346520772,1735018282327,-500.0,0.00016163,2]
[346520773,1735018282336,-500.0,0.00016163,2]
[346520774,1735018282346,-500.0,0.00016163,2]
[346520775,1735018282355,-500.0,0.00016163,2]
[346520776,1735018282364,-500.0,0.00016163,2]
[346520777,1735018282374,-535.15,0.00016163,2]
[346520778,1735018282383,-500.0,0.00016163,2]
[346520779,1735018282392,-500.0,0.00016163,2]
[346520780,1735018282401,-609.1,0.00016163,2]
[346520781,1735018282410,-500.0,0.00016163,2]
[346520782,1735018282419,-500.0,0.00016163,2]
[346520783,1735018282428,-500.0,0.00016163,2]
[346520784,1735018282437,-500.0,0.00016163,2]
[346520785,1735018282446,-500.0,0.00016163,2]
[346520786,1735018282455,-500.0,0.00016163,2]
[346520787,1735018282465,-500.0,0.00016163,2]
[346520788,1735018282474,-500.0,0.00016163,2]
[346520789,1735018282483,-500.0,0.00016163,2]
[346520790,1735018282492,-500.0,0.00016163,2]
[346520791,1735018282502,-500.0,0.00016163,2]
[346520792,1735018282511,-500.0,0.00016163,2]
[346520793,1735018282520,-500.0,0.00016163,2]
[346520794,1735018282530,-500.0,0.00016163,2]
[346520795,1735018282539,-500.0,0.00016163,2]
[346520796,1735018282548,-500.0,0.00016163,2]
[346520797,1735018282558,-500.0,0.00016163,2]
[346520798,1735018282567,-500.0,0.00016163,2]
[346520799,1735018282577,-500.0,0.00016163,2]
[346520800,1735018282586,-500.0,0.00016163,2]
[346520801,1735018282595,-500.0,0.00016163,2]
[346520802,1735018282605,-269.35321128,0.00016163,2]
[346520803,1735018282614,-500.0,0.00016163,2]
[346520804,1735018282624,-1508.76,0.00016163,2]
[346520805,1735018282633,-500.0,0.00016163,2]
[346520806,1735018282643,-500.0,0.00016163,2]
[346520807,1735018282652,-1465.72,0.00016163,2]
[346520808,1735018282661,-500.0,0.00016163,2]
[346520809,1735018282671,-285.4,0.00016163,2]
[346520810,1735018282680,-500.0,0.00016163,2]
[346520811,1735018282689,-1465.24,0.00016163,2]
[346520812,1735018282699,-500.0,0.00016163,2]
[346520813,1735018282709,-500.0,0.00016163,2]
[346520814,1735018282719,-2919.0,0.00016163,2]
[346520815,1735018282728,-2253.9,0.00016163,2]
[346520816,1735018282738,-3237.5,0.00016163,2]
[346520817,1735018282748,-554.59,0.00016163,2]
[346520818,1735018282757,-794.47,0.00016163,2]
[346520819,1735018282767,-935.63,0.00016163,2]
[346520820,1735018282776,-500.0,0.00016163,2]
[346520821,1735018282785,-2816.14,0.00016163,2]
[346520822,1735018282795,-500.0,0.00016163,2]
[346520823,1735018282804,-500.0,0.00016163,2]
[346520824,1735018282814,-955.57,0.00016163,2]
[346520825,1735018282823,-500.0,0.00016163,2]
[346520826,1735018282832,-500.0,0.00016163,2]
[346520827,1735018282841,-500.0,0.00016163,2]
[346520828,1735018282850,-908.11,0.00016163,2]
[346520829,1735018282860,-500.0,0.00016163,2]
[346520830,1735018282869,-500.0,0.00016163,2]
[346520831,1735018282878,-1028.08,0.00016163,2]
[346520832,1735018282887,-568.18,0.00016163,2]
[346520833,1735018282896,-683.69,0.00016163,2]
[346520834,1735018282907,-500.0,0.00016163,2]
[346520835,1735018282916,-1115.82,0.00016163,2]
[346520836,1735018282925,-722.75,0.00016163,2]
[346520837,1735018282935,-1499.78,0.00016163,2]
[346520838,1735018282944,-500.0,0.00016163,2]
[346520839,1735018282953,-1265.66,0.00016163,2]
[346520840,1735018282962,-217.4,0.00016163,2]
[346520841,1735018282971,-500.0,0.00016163,2]
[346520842,1735018282980,-7745.3,0.00016163,2]
[346520843,1735018282990,-500.0,0.00016163,2]
[346520844,1735018282999,-500.0,0.00016163,2]
[346520845,1735018283008,-954.82,0.00016163,2]
[346520846,1735018283018,-500.0,0.00016163,2]
[346520847,1735018283027,-500.0,0.00016163,2]
[346520848,1735018283036,-500.0,0.00016163,2]
[346520849,1735018283047,-150.0,0.00016164,2]
[346520850,1735018283058,-631.51498184,0.00016164,2]
[346520851,1735018283068,-500.0,0.00016164,2]
[346520852,1735018283078,-500.0,0.00016164,2]
[346520853,1735018283088,-500.0,0.00016164,2]
[346520854,1735018283097,-546.3,0.00016164,2]
[346520855,1735018283108,-500.0,0.00016164,2]
[346520856,1735018283118,-658.36,0.00016164,2]
[346520857,1735018283128,-500.0,0.00016164,2]
[346520858,1735018283138,-500.0,0.00016164,2]
[346520859,1735018283152,-500.0,0.00016164,2]
[346520860,1735018283162,-680.9,0.00016164,2]
[346520861,1735018283172,-500.0,0.00016164,2]
[346520862,1735018283182,-500.0,0.00016164,2]
[346520863,1735018283192,-500.0,0.00016164,2]
[346520864,1735018283202,-501.62,0.00016164,2]
[346520865,1735018283213,-586.12,0.00016164,2]
[346520866,1735018283223,-500.0,0.00016164,2]
[346520867,1735018283233,-500.0,0.00016164,2]
[346520868,1735018283243,-500.0,0.00016164,2]
[346520869,1735018283252,-500.0,0.00016164,2]
[346520870,1735018283261,-500.0,0.00016164,2]
[346520871,1735018283272,-500.0,0.00016164,2]
[346520872,1735018283282,-500.0,0.00016164,2]
[346520873,1735018283291,-500.71,0.00016164,2]
[346520874,1735018283301,-582.46,0.00016164,2]
[346520875,1735018283311,-500.0,0.00016164,2]
[346520876,1735018283320,-500.0,0.00016164,2]
[346520877,1735018283329,-500.0,0.00016164,2]
[346520878,1735018283339,-261.72059241,0.00016164,2]
[346520879,1735018283348,-500.0,0.00016164,2]
[346520880,1735018283357,-584.84,0.00016164,2]
[346520881,1735018283367,-500.0,0.00016164,2]
[346520882,1735018283376,-667.98,0.00016164,2]
[346520883,1735018283385,-500.0,0.00016164,2]
[346520884,1735018283395,-500.0,0.00016164,2]
[346520885,1735018283404,-500.0,0.00016164,2]
[346520886,1735018283413,-500.0,0.00016164,2]
[346520887,1735018283423,-500.0,0.00016164,2]
[346520888,1735018283433,-500.0,0.00016164,2]
[346520889,1735018283443,-711.57,0.00016164,2]
[346520890,1735018283453,-500.0,0.00016164,2]
[346520891,1735018283463,-500.0,0.00016164,2]
[346520892,1735018283472,-500.0,0.00016164,2]
[346520893,1735018283482,-897.7,0.00016164,2]
[346520894,1735018283491,-500.0,0.00016164,2]
[346520895,1735018283501,-500.0,0.00016164,2]
[346520896,1735018283511,-500.0,0.00016164,2]
[346520897,1735018283520,-500.0,0.00016164,2]
[346520898,1735018283530,-500.0,0.00016164,2]
[346520899,1735018283540,-560.63,0.00016164,2]
[346520900,1735018283550,-668.01,0.00016164,2]
[346520901,1735018283560,-500.0,0.00016164,2]
[346520902,1735018283569,-557.47,0.00016164,2]
[346520903,1735018283579,-500.0,0.00016164,2]
[346520904,1735018283590,-500.0,0.00016164,2]
[346520905,1735018283599,-383.597552,0.00016164,2]
[346520906,1735018283609,-500.0,0.00016164,2]
[346520907,1735018283618,-555.168296,0.00016164,2]
[346520908,1735018283628,-500.0,0.00016164,2]
[346520909,1735018283638,-500.0,0.00016164,2]
[346520910,1735018283648,-500.0,0.00016164,2]
[346520911,1735018283657,-946.68,0.00016164,2]
[346520912,1735018283667,-424.38529894,0.00016164,2]
[346520913,1735018283677,-500.0,0.00016164,2]
[346520914,1735018283687,-500.0,0.00016164,2]
[346520915,1735018283696,-500.0,0.00016164,2]
[346520916,1735018283709,-500.0,0.00016164,2]
[346520917,1735018283719,-500.0,0.00016164,2]
[346520918,1735018283728,-500.0,0.00016164,2]
[346520919,1735018283737,-592.9,0.00016164,2]
[346520920,1735018283747,-547.28,0.00016164,2]
[346520921,1735018283756,-598.2,0.00016164,2]
[346520922,1735018283766,-520.01,0.00016164,2]
[346520923,1735018283775,-500.0,0.00016164,2]
[346520924,1735018283784,-506.66,0.00016164,2]
[346520925,1735018283794,-500.0,0.00016164,2]
[346520926,1735018283803,-500.0,0.00016164,2]
[346520927,1735018283812,-662.17,0.00016164,2]
[346520928,1735018283821,-500.0,0.00016164,2]
[346520929,1735018283830,-500.0,0.00016164,2]
[346520930,1735018283840,-696.48,0.00016164,2]
[346520931,1735018283849,-500.0,0.00016164,2]
[346520932,1735018283858,-500.0,0.00016164,2]
[346520933,1735018283867,-500.0,0.00016164,2]
[346520934,1735018283876,-518.6,0.00016164,2]
[346520935,1735018283885,-500.0,0.00016164,2]
[346520936,1735018283895,-500.0,0.00016164,2]
[346520937,1735018283904,-1152.77,0.00016164,2]
[346520938,1735018283913,-500.0,0.00016164,2]
[346520939,1735018283922,-539.66281567,0.00016164,2]
[346520940,1735018283932,-500.0,0.00016164,2]
[346520941,1735018283941,-725.31,0.00016164,2]
[346520942,1735018283950,-500.0,0.00016164,2]
[346520943,1735018283960,-586.32,0.00016164,2]
[346520944,1735018283970,-500.0,0.00016164,2]
[346520945,1735018283980,-846.78,0.00016164,2]
[346520946,1735018283989,-500.0,0.00016164,2]
[346520947,1735018283999,-500.0,0.00016164,2]
[346520948,1735018284008,-547.95,0.00016164,2]
[346520949,1735018284017,-713.44,0.00016164,2]
[346520950,1735018284026,-796.84,0.00016164,2]
[346520951,1735018284035,-523.75,0.00016164,2]
[346520952,1735018284046,-500.0,0.00016164,2]
[346520953,1735018284055,-500.0,0.00016164,2]
[346520954,1735018284067,-500.0,0.00016164,2]
[346520955,1735018284077,-500.0,0.00016164,2]
[346520956,1735018284086,-500.0,0.00016164,2]
[346520957,1735018284095,-500.0,0.00016164,2]
[346520958,1735018284104,-500.0,0.00016164,2]
[346520959,1735018284114,-5016.22,0.00016164,2]
[346520960,1735018284123,-1638.06,0.00016164,2]
[346520961,1735018284132,-500.0,0.00016164,2]
[346520962,1735018284142,-551.44,0.00016164,2]
[346520963,1735018284155,-1164.78,0.00016164,2]
[346520964,1735018284164,-500.0,0.00016164,2]
[346520965,1735018284174,-500.0,0.00016164,2]
[346520966,1735018284183,-782.49,0.00016164,2]
[346520967,1735018284193,-1583.85,0.00016164,2]
[346520968,1735018284203,-901.71,0.00016164,2]
[346520969,1735018284212,-500.0,0.00016164,2]
[346520970,1735018284222,-1977.81,0.00016164,2]
[346520971,1735018284232,-500.0,0.00016164,2]
[346520972,1735018284241,-509.19,0.00016164,2]
[346520973,1735018284251,-500.0,0.00016164,2]
[346520974,1735018284261,-500.0,0.00016164,2]
[346520975,1735018284273,-500.0,0.00016164,2]
[346520976,1735018284283,-500.0,0.00016164,2]
[346520977,1735018284292,-500.0,0.00016164,2]
[346520978,1735018284301,-792.79,0.00016164,2]
[346520979,1735018284310,-849.68,0.00016164,2]
[346520980,1735018284320,-2088.9,0.00016164,2]
[346520981,1735018284329,-500.0,0.00016164,2]
[346520982,1735018284338,-2055.88,0.00016164,2]
[346520983,1735018284347,-500.0,0.00016164,2]
[346520984,1735018284356,-7677.04,0.00016164,2]
[346520985,1735018284366,-543.48,0.00016164,2]
[346520986,1735018284375,-854.97,0.00016164,2]
[346520987,1735018284384,-1395.53,0.00016164,2]
[346520988,1735018284394,-500.0,0.00016164,2]
[346520989,1735018284403,-500.0,0.00016164,2]
[346520990,1735018284412,-3679.71,0.00016164,2]
[346520991,1735018284422,-500.0,0.00016164,2]
[346520992,1735018284431,-1080.57,0.00016164,2]
[346520993,1735018284440,-500.0,0.00016164,2]
[346520994,1735018284449,-1694.03,0.00016164,2]
[346520995,1735018284727,-500.0,0.00016164,2]
[346520996,1735018284738,-1385.02,0.00016164,2]
[346520997,1735018284747,-505.35,0.00016164,2]
[346520998,1735018284757,-500.0,0.00016164,2]
[346520999,1735018284767,-1117.85,0.00016164,2]
[346521000,1735018284776,-705.9,0.00016164,2]
[346521001,1735018284785,-1539.8,0.00016164,2]
[346521002,1735018284794,-500.0,0.00016164,2]
[346521003,1735018284804,-2249.94,0.00016164,2]
[346521004,1735018284813,-500.0,0.00016164,2]
[346521005,1735018284822,-500.0,0.00016164,2]
[346521006,1735018284832,-3833.98,0.00016164,2]
[346521007,1735018284841,-500.0,0.00016164,2]
[346521008,1735018284851,-937.66,0.00016164,2]
[346521009,1735018284860,-500.0,0.00016164,2]
[346521010,1735018284870,-2551.89,0.00016164,2]
[346521011,1735018284879,-586.98,0.00016164,2]
[346521012,1735018284887,-500.0,0.00016164,2]
[346521013,1735018284897,-1335.36,0.00016164,2]
[346521014,1735018284907,-3168.41,0.00016164,2]
[346521015,1735018284916,-500.0,0.00016164,2]
[346521016,1735018284926,-1369.41,0.00016164,2]
[346521017,1735018284935,-575.13,0.00016164,2]
[346521018,1735018284944,-845.43,0.00016164,2]
[346521019,1735018284955,-500.0,0.00016164,2]
[346521020,1735018284964,-887.19,0.00016164,2]
[346521021,1735018284973,-500.0,0.00016164,2]
[346521022,1735018284983,-547.48,0.00016164,2]
[346521023,1735018284991,-716.51,0.00016164,2]
[346521024,1735018285001,-561.45,0.00016164,2]
[346521025,1735018285010,-500.0,0.00016164,2]
[346521026,1735018285019,-500.0,0.00016164,2]
[346521027,1735018285028,-558.02,0.00016164,2]
[346521028,1735018285038,-500.0,0.00016164,2]
[346521029,1735018285050,-500.0,0.00016164,2]
[346521030,1735018285059,-1000.0,0.00016164,2]
[346521031,1735018285068,-500.0,0.00016164,2]
[346521032,1735018285078,-500.0,0.00016164,2]
[346521033,1735018285087,-973.2,0.00016164,2]
[346521034,1735018285097,-3656.76,0.00016164,2]
[346521035,1735018285106,-500.0,0.00016164,2]
[346521036,1735018285116,-997.53,0.00016164,2]
[346521037,1735018285125,-855.77,0.00016164,2]
[346521038,1735018285134,-693.49,0.00016164,2]
[346521039,1735018285143,-500.0,0.00016164,2]
[346521040,1735018285155,-637.35,0.00016164,2]
[346521041,1735018285164,-1739.36,0.00016164,2]
[346521042,1735018285174,-500.0,0.00016164,2]
[346521043,1735018285184,-500.0,0.00016164,2]
[346521044,1735018285193,-705.36,0.00016164,2]
[346521045,1735018285202,-500.0,0.00016164,2]
[346521046,1735018285212,-500.0,0.00016164,2]
[346521047,1735018285222,-1543.65,0.00016164,2]
[346521048,1735018285231,-500.0,0.00016164,2]
[346521049,1735018285240,-820.97,0.00016164,2]
[346521050,1735018285249,-1819.38,0.00016164,2]
[346521051,1735018285258,-4120.74,0.00016164,2]
[346521052,1735018285268,-989.44,0.00016164,2]
[346521053,1735018285277,-910.57,0.00016164,2]
[346521054,1735018285286,-2961.05,0.00016164,2]
[346521055,1735018285295,-500.0,0.00016164,2]
[346521056,1735018285305,-503.58,0.00016164,2]
[346521057,1735018285314,-903.8,0.00016164,2]
[346521058,1735018285323,-596.96,0.00016164,2]
[346521059,1735018285332,-807.94,0.00016164,2]
[346521060,1735018285342,-1456.76,0.00016164,2]
[346521061,1735018285351,-2643.91,0.00016164,2]
[346521062,1735018285360,-1308.53,0.00016164,2]
[346521063,1735018285370,-794.16,0.00016164,2]
[346521064,1735018285379,-1213.29,0.00016164,2]
[346521065,1735018285388,-1676.79,0.00016164,2]
[346521066,1735018285402,-500.0,0.00016164,2]
[346521067,1735018285412,-500.0,0.00016164,2]
[346521068,1735018285421,-5281.26,0.00016164,2]
[346521069,1735018285431,-1433.69,0.00016164,2]
[346521070,1735018285442,-677.19,0.00016164,2]
[346521071,1735018285453,-1372.29,0.00016164,2]
[346521072,1735018285463,-1023.69,0.00016164,2]
[346521073,1735018285472,-500.0,0.00016164,2]
[346521074,1735018285482,-680.17,0.00016164,2]
[346521075,1735018285492,-552.15,0.00016164,2]
[346521076,1735018285502,-705.72,0.00016164,2]
[346521077,1735018285512,-500.0,0.00016164,2]
[346521078,1735018285522,-674.8,0.00016164,2]
[346521079,1735018285531,-4867.25,0.00016164,2]
[346521080,1735018285541,-3213.6,0.00016164,2]
[346521081,1735018285551,-854.26,0.00016164,2]
[346521082,1735018285560,-627.202339,0.00016164,2]
[346521083,1735018285570,-1660.69,0.00016164,2]
[346521084,1735018285580,-500.0,0.00016164,2]
[346521085,1735018285590,-548.87,0.00016164,2]
[346521086,1735018285600,-826.14,0.00016164,2]
[346521087,1735018285610,-500.0,0.00016164,2]
[346521088,1735018285620,-14771.78,0.00016164,2]
[346521089,1735018285630,-619.38,0.00016164,2]
[346521090,1735018285639,-3293.16,0.00016164,2]
[346521091,1735018285650,-306.97338926,0.00016164,2]
[346521092,1735018285660,-500.0,0.00016164,2]
[346521093,1735018285670,-500.0,0.00016164,2]
[346521094,1735018285679,-527.97,0.00016164,2]
[346521095,1735018285690,-500.0,0.00016164,2]
[346521096,1735018285700,-500.0,0.00016164,2]
[346521097,1735018285710,-151.0,0.00016164,2]
[346521098,1735018285720,-500.0,0.00016164,2]
[346521099,1735018285730,-1071.77,0.00016164,2]
[346521100,1735018285740,-500.0,0.00016164,2]
[346521101,1735018285750,-500.0,0.00016164,2]
[346521102,1735018285759,-150.0,0.00016184,2]
[346521103,1735018285769,-150.0,0.00016198,2]
[346521104,1735018285780,-150.0,0.00016208,2]
[346521105,1735018285789,-150.0,0.00016208,2]
[346521106,1735018285799,-150.0,0.00016208,2]
[346521107,1735018285808,-150.0,0.00016232,2]
[346521108,1735018285818,-150.0,0.00016233,2]
[346521109,1735018285828,-150.0,0.00016256,2]
[346521110,1735018285838,-150.0,0.00016268,2]
[346521111,1735018285848,-150.0,0.00016268,2]
[346521112,1735018285858,-150.0,0.0001628,2]
[346521113,1735018285867,-500.0,0.000163,2]
[346521114,1735018285877,-150.0,0.00016303,2]
[346521115,1735018285887,-150.0,0.00016304,2]
[346521116,1735018285897,-150.0,0.00016327,2]
[346521117,1735018285906,-150.0,0.00016327,2]
[346521118,1735018285916,-150.0,0.00016337,2]
[346521119,1735018285925,-294.79783675,0.00016338,2]
[346521120,1735018285935,-200.0,0.0001634,2]
[346521121,1735018285944,-150.0,0.00016351,2]
[346521122,1735018285954,-553.36804499,0.0001636,2]
[346521123,1735018285963,-150.0,0.00016372,2]
[346521124,1735018285973,-150.0,0.00016375,2]
[346521125,1735018285982,-150.0,0.00016387,2]
[346521126,1735018285992,-150.0,0.00016399,2]
[346521127,1735018286001,-300.0,0.000164,2]
[346521128,1735018286010,-150.0,0.00016407,2]
[346521129,1735018286020,-500.0,0.0001642,2]
[346521130,1735018286030,-323.08254876,0.0001642,2]
[346521131,1735018286039,-150.0,0.00016423,2]
[346521132,1735018286048,-510.13,0.00016437,2]
[346521133,1735018286058,-500.0,0.00016437,2]
[346521134,1735018286067,-500.0,0.00016437,2]
[346521135,1735018286078,-500.0,0.00016437,2]
[346521136,1735018286087,-500.0,0.00016437,2]
[346521137,1735018286096,-500.0,0.00016437,2]
[346521138,1735018286106,-500.0,0.00016437,2]
[346521139,1735018286116,-500.0,0.00016437,2]
[346521140,1735018286125,-500.0,0.00016437,2]
[346521141,1735018286135,-535.15,0.00016437,2]
[346521142,1735018286147,-500.0,0.00016437,2]
[346521143,1735018286158,-500.0,0.00016437,2]
[346521144,1735018286167,-609.1,0.00016437,2]
[346521145,1735018286177,-500.0,0.00016437,2]
[346521146,1735018286187,-150.36959808,0.00016437,2]
[346521147,1735018286196,-500.0,0.00016437,2]
[346521148,1735018286206,-500.0,0.00016437,2]
[346521149,1735018286216,-500.0,0.00016437,2]
[346521150,1735018286226,-500.0,0.00016437,2]
[346521151,1735018286235,-500.0,0.00016437,2]
[346521152,1735018286244,-500.0,0.00016437,2]
[346521153,1735018286254,-500.0,0.00016437,2]
[346521154,1735018286264,-500.0,0.00016437,2]
[346521155,1735018286273,-368.15530403,0.00016437,2]
[346521156,1735018286282,-217.85529363,0.00016437,2]
[346521157,1735018286292,-500.0,0.00016437,2]
[346521158,1735018286302,-500.0,0.00016437,2]
[346521159,1735018286311,-500.0,0.00016437,2]
[346521160,1735018286321,-500.0,0.00016437,2]
[346521161,1735018286331,-500.0,0.00016437,2]
[346521162,1735018286340,-286.24753031,0.00016437,2]